[Event "1st Serbian League 2022"]
[Site "Vrnjacka Banja"]
[Date "2022.09.20"]
[Round "1.11"]
[White "Rajkovic, Mladen"]
[Black "Kosic, Dragan"]
[Result "1-0"]
[ECO "C08"]
[WhiteElo "2335"]
[BlackElo "2399"]
[Annotator "ChessBase"]
[PlyCount "111"]
[EventDate "2022.09.20"]
[EventType "team-tourn"]
[EventCountry "SRB"]
[SourceTitle "playchess.com"]
[Source "ChessBase"]
[SourceQuality "1"]
[TimeControl "40/5400+30:1800+30"]

1. e4 {[%emt 0:00:07]} e6 {[%emt 0:00:08]} 2. d4 {[%emt 0:00:06]} d5 {[%emt 0:00:04]} 3. Nd2 {[%emt 0:00:06]} a6 {[%emt 0:00:15]} 4. Ngf3 {[%emt 0:00:46]} c5 {[%emt 0:02:18]} 5. exd5 {[%emt 0:00:18]} exd5 {[%emt 0:00:06]} 6. Be2 {[%emt 0:02:24]} Nf6 {[%emt 0:00:52]} 7. dxc5 {[%emt 0:00:40]} Bxc5 {[%emt 0:00:32]} 8. Nb3 {[%emt 0:00:05]} Bb6 {[%emt 0:00:33]} 9. Qd3 {[%emt 0:00:08]} Nc6 {[%emt 0:02:10]} 10. Be3 {[%emt 0:00:43]} O-O {[%emt 0:01:22]} 11. Bxb6 {[%emt 0:20:11]} Qxb6 {[%emt 0:03:25]} 12. c3 {[%emt 0:02:17]} Re8 {[%emt 0:02:05]} 13. O-O {[%emt 0:03:23]} Bg4 {[%emt 0:09:00]} 14. Rae1 {[%emt 0:05:10]} Re4 {[%emt 0:12:36]} 15. Nfd4 {[%emt 0:06:54]} Rae8 {[%emt 0:09:52]} 16. f3 {[%emt 0:04:31]} Re3 {[%emt 0:01:52]} 17. Qd2 {[%emt 0:02:16]} Bd7 {[%emt 0:00:32]} 18. Bd3 {[%emt 0:01:10]} Rxe1 {[%emt 0:04:53]} 19. Rxe1 {[%emt 0:00:08]} Rxe1+ {[%emt 0:00:40]} 20. Qxe1 {[%emt 0:00:03]} a5 {[%emt 0:01:04]} 21. Qf2 {[%emt 0:03:18]} Ne5 {[%emt 0:07:01]} 22. Nc1 {[%emt 0:03:04]} g6 {[%emt 0:01:42]} 23. Bf1 {[%emt 0:02:18]} Nc4 {[%emt 0:04:00]} 24. Nd3 {[%emt 0:05:16]} Qd6 {[%emt 0:02:35]} 25. b3 {[%emt 0:06:21]} Na3 {[%emt 0:01:47]} 26. Qe3 {[%emt 0:03:01]} Nb5 {[%emt 0:03:32]} 27. Ne5 {[%emt 0:03:37]} Nc7 {[%emt 0:12:07]} 28. g3 {[%emt 0:02:41]} Qe7 {[%emt 0:03:06]} 29. a4 {[%emt 0:03:37]} Be8 {[%emt 0:03:06]} 30. Kf2 {[%emt 0:05:20]} Ne4+ {[%emt 0:02:57]} 31. fxe4 {[%emt 0:00:37]} Qxe5 {[%emt 0:00:16]} 32. exd5 {[%emt 0:01:50]} Qxe3+ {[%emt 0:00:05]} 33. Kxe3 {[%emt 0:00:05]} Nxd5+ {[%emt 0:00:03]} 34. Kd3 {[%emt 0:02:18]} b6 {[%emt 0:00:06]} 35. Bg2 {[%emt 0:00:59]} Nc7 {[%emt 0:00:22]} 36. Bc6 {[%emt 0:05:54]} Kf8 {[%emt 0:01:05]} 37. b4 {[%emt 0:00:38]} axb4 {[%emt 0:01:57]} 38. cxb4 {[%emt 0:00:01]} Ke7 {[%emt 0:01:05]} 39. Bxe8 {[%emt 0:02:14]} Kxe8 {[%emt 0:00:16]} 40. Kc4 {[%emt 0:02:18]} Kd7 {[%emt 0:00:54]} 41. a5 {[%emt 0:08:14]} bxa5 {[%emt 0:01:04]} 42. bxa5 {[%emt 0:00:01]} f5 {[%emt 0:04:47]} 43. Kc5 {[%emt 0:01:31]} h5 {[%emt 0:01:53]} 44. h4 {[%emt 0:04:18]} Kc8 {[%emt 0:04:41]} 45. Kd6 {[%emt 0:01:14]} Kb7 {[%emt 0:00:12]} 46. Ke5 {[%emt 0:05:11]} Ka6 {[%emt 0:00:29]} 47. Nc6 {[%emt 0:07:48]} Nb5 {[%emt 0:00:42]} 48. Ne7 {[%emt 0:01:36]} Nc3 {[%emt 0:00:15]} 49. Kf4 {[%emt 0:00:59]} Kxa5 {[%emt 0:01:57]} 50. Nxg6 {[%emt 0:00:21]} Ne2+ {[%emt 0:00:07]} 51. Kf3 {[%emt 0:00:15]} Nd4+ {[%emt 0:00:13]} 52. Ke3 {[%emt 0:00:12]} Nc2+ {[%emt 0:04:13]} 53. Kd3 {[%emt 0:03:27]} Nb4+ {[%emt 0:01:54]} 54. Kd4 {[%emt 0:00:45]} Kb5 {[%emt 0:03:07]} 55. Nf4 {[%emt 0:00:58]} Nc2+ {[%emt 0:02:44]} 56. Ke5 {[%emt 0:00:25]} 1-0

[Event "1st Serbian League 2022"]
[Site "Vrnjacka Banja"]
[Date "2022.09.20"]
[Round "1.12"]
[White "Lazic, Miroljub"]
[Black "Mijailovic, Zoran"]
[Result "1-0"]
[ECO "A06"]
[WhiteElo "2300"]
[BlackElo "2345"]
[Annotator "ChessBase"]
[PlyCount "55"]
[EventDate "2022.09.20"]
[EventType "team-tourn"]
[EventCountry "SRB"]
[SourceTitle "playchess.com"]
[Source "ChessBase"]
[SourceQuality "1"]
[TimeControl "40/5400+30:1800+30"]

1. Nf3 {[%emt 0:00:09]} c5 {[%emt 0:00:44]} 2. b3 {[%emt 0:00:19]} d5 {[%emt 0:00:38]} 3. e3 {[%emt 0:00:09]} Nf6 {[%emt 0:01:22]} 4. Bb5+ {[%emt 0:01:53]} Bd7 {[%emt 0:02:55]} 5. Qe2 {[%emt 0:01:52]} g6 {[%emt 0:02:44]} 6. Bb2 {[%emt 0:01:31]} Bg7 {[%emt 0:01:33]} 7. Bxd7+ {[%emt 0:00:31]} Nbxd7 {[%emt 0:05:44]} 8. c4 {[%emt 0:03:39]} O-O {[%emt 0:09:55]} 9. O-O {[%emt 0:02:09]} Rc8 {[%emt 0:06:37]} 10. Rd1 {[%emt 0:06:24]} dxc4 {[%emt 0:07:17]} 11. bxc4 {[%emt 0:00:27]} Qa5 {[%emt 0:00:46]} 12. d3 {[%emt 0:05:25]} Rfd8 {[%emt 0:04:53]} 13. a4 {[%emt 0:01:13]} Ne8 {[%emt 0:07:47]} 14. Bxg7 {[%emt 0:02:59]} Nxg7 {[%emt 0:00:15]} 15. Qb2 {[%emt 0:01:21]} Qc7 {[%emt 0:12:57]} 16. Nbd2 {[%emt 0:01:40]} Nf5 {[%emt 0:05:25]} 17. a5 {[%emt 0:03:58]} Nd6 {[%emt 0:06:57]} 18. Rdc1 {[%emt 0:09:39]} Nb8 {[%emt 0:01:52]} 19. d4 {[%emt 0:00:25]} cxd4 {[%emt 0:06:19]} 20. exd4 {[%emt 0:03:31]} Na6 {[%emt 0:02:05]} 21. c5 {[%emt 0:04:07]} Nf5 {[%emt 0:00:33]} 22. Nc4 {[%emt 0:00:03]} Nb8 {[%emt 0:02:35]} 23. Ne3 {[%emt 0:04:47]} Nc6 {[%emt 0:03:35]} 24. d5 {[%emt 0:07:53]} Nb8 {[%emt 0:02:40]} 25. d6 {[%emt 0:02:37]} Qc6 {[%emt 0:00:13]} 26. Ne5 {[%emt 0:02:02]} Qe8 {[%emt 0:00:19]} 27. N5g4 {[%emt 0:01:26]} Ng7 {[%emt 0:02:40]} 28. Nd5 {[%emt 0:00:51]} 1-0

[Event "1st Serbian League 2022"]
[Site "Vrnjacka Banja"]
[Date "2022.09.20"]
[Round "1.13"]
[White "Sarana, Alexey"]
[Black "Krstulovic, Alex"]
[Result "1-0"]
[ECO "B13"]
[WhiteElo "2662"]
[BlackElo "2411"]
[Annotator "TA"]
[PlyCount "105"]
[EventDate "2022.09.20"]
[EventType "team-tourn"]
[EventCountry "SRB"]
[SourceTitle "playchess.com"]
[Source "ChessBase"]
[SourceQuality "1"]
[TimeControl "40/5400+30:1800+30"]

{[%evp 13,105,17,16,21,25,15,23,17,16,27,18,0,0,10,0,0,31,22,60,13,28,0,0,-17,0,-15,-9,-18,21,27,49,36,52,50,53,48,38,35,35,35,54,33,78,71,110,109,111,106,139,139,169,165,145,0,0,0,0,0,0,0,37,0,39,54,51,49,45,68,47,77,81,91,112,111,193,209,254,244,392,391,1148,1114,1197,985,1643,1515,428,1464,1211,1230,1981,1711,1395,459]} 1. c4 {[%emt 0:00:02]} c6 {[%emt 0:00:14]} 2. e4 {[%emt 0:00:29]} d5 {[%emt 0:00:09]} 3. exd5 {[%emt 0:00:07]} cxd5 {[%emt 0:00:08]} 4. d4 {[%emt 0:00:04]} Nf6 {[%emt 0:00:26]} 5. Nc3 {[%emt 0:00:10]} Nc6 {[%emt 0:00:37]} 6. Nf3 {[%emt 0:01:50]} Be6 {[%emt 0:04:44]} 7. c5 {[%emt 0:00:38]} g6 {[%emt 0:01:00] BESTDEEP} 8. Bb5 {[%emt 0:00:17] CPLX 2.0. B13: Caro-Kann: Exchange Variation and Panov-Botvinnik Attack.} Bg7 {[%emt 0:02:29] CPLX 2.3} 9. O-O {[%emt 0:00:40] BESTDEEP} O-O {[%emt 0:00:34] BESTDEEP} 10. h3 {[%emt 0:00:08] Inhibits Bg4. BESTDEEP. White has an edge.} Ne4 {[%emt 0:07:33] BESTDEEP} 11. Re1 {[%emt 0:02:08]} Qa5 {[%emt 0:05:28] [#] CPLX 3.1} 12. Nxe4 $146 {[%emt 0:06:32] CPLX 3.3 18 (a2-a4) (=4)} ({Predecessor:} 12. Bxc6 Nxc3 {½-½ (12) Meinhardt,M (2374)-Schneider,I (2516) Karlsruhe 2017}) 12... Qxb5 {[%emt 0:03:31] EASY} 13. Nc3 {[%emt 0:03:22] EASY} Qc4 {[%emt 0:06:21][%cal Rc6d4]} 14. Be3 {[%emt 0:00:16] CPLX 2.8} Nb4 {[%emt 0:05:37] CPLX 2.7 31 (b7-b6) (=4)} 15. Bg5 {[%emt 0:27:40] CPLX 2.8} Rfe8 {[%emt 0:09:40] CPLX 3.0 38 (Nb4-c6) (=8)} 16. Qd2 {[%emt 0:01:14] CPLX 3.0 47 (Re1-e3) (=7)} (16. Re3 $14 {is more appropriate.}) 16... b6 {[%emt 0:08:49] CPLX 3.0 15 (Nb4-c6) (=8)} (16... Nd3 17. b3 Qa6 18. Red1 $16) 17. a3 {[%emt 0:17:48] CPLX 3.3 28 (Ra1-d1) (=9)} Nc6 {[%emt 0:02:01][%cal Bb4c6,Bc6a5,Ba5b3][%mdl 32] CPLX 3.3} 18. Ne2 {[%emt 0:01:10] CPLX 3.1 17 (c5xb6) (=10)} Na5 $1 {[%emt 0:06:41] And now ...Nb3 would win. DEEPSTRONG} (18... bxc5 19. Rac1 Qa6 20. Rxc5 $16) 19. Qe3 {[%emt 0:00:54] CPLX 2.9 15 (Ne2-c1) (=10)} bxc5 {[%emt 0:11:31] CPLX 2.9 6 (Qc4-b3) (=7)} 20. Rac1 {[%emt 0:00:23] CPLX 3.0 9 (Bg5-h6) (=10)} Qb3 {[%emt 0:00:07] CPLX 3.4 39 (Qc4-a6) (=9)} (20... Qa6 $5 {[%cal Ra5c4]}) 21. Rxc5 {[%emt 0:01:45] EASY} Qxe3 {[%emt 0:00:17] EASY} 22. fxe3 {[%emt 0:02:56] RECAPT} Nb3 {[%emt 0:04:31] CPLX 2.5 16 (Na5-c4) (=9)} 23. Rb5 $36 {[%emt 0:08:27][%mdl 2048] White has the initiative. EASY} Rab8 {[%emt 0:00:13] CPLX 2.6} 24. Rxb8 {[%emt 0:00:04] EASY} Rxb8 {[%emt 0:00:05] RECAPT} 25. Bxe7 {[%emt 0:00:04] CPLX 2.1} Na5 {[%emt 0:01:26] BESTDEEP} 26. b4 {[%emt 0:00:38] CPLX 2.1} Nc4 {[%emt 0:00:05][%csl LRa3,LRe3] EASY} 27. Nf4 {[%emt 0:00:05] CPLX 2.2 21 (Be7-c5) (=8)} Nxa3 {[%emt 0:01:21] CPLX 2.4 45 (Rb8-b7) (=9)} 28. Ra1 {[%emt 0:01:07] CPLX 2.3} Nb5 {[%emt 0:03:17] CPLX 2.5 39 (Rb8-b7) (=10)} 29. Nxe6 {[%emt 0:01:00] White is much more active. CPLX 2.4} fxe6 {[%emt 0:00:08] RECAPT} 30. Bc5 {[%emt 0:00:05] CPLX 2.0} Rb7 {[%emt 0:03:14] CPLX 2.0 33 (h7-h5) (=11)} 31. Ra6 {[%emt 0:01:15] CPLX 2.0} Bh6 {[%emt 0:03:31] CPLX 2.0 30 (Nb5-c3) (=12)} 32. Kf2 $1 {[%emt 0:01:30] BESTDEEP} (32. Rxe6 Kf7 33. Re5 Nc3 $16) 32... Nc3 {[%emt 0:00:53] CPLX 2.0} 33. Rxe6 {[%emt 0:04:56] CPLX 2.2 145 (Nf3-e5) (=12)} (33. Ne5 $16) 33... a5 $11 {[%emt 0:02:27] BESTDEEP} 34. bxa5 {[%emt 0:00:49][%cal Bb4a5,Ba5a6][%mdl 32] Black must now prevent Rb6. CPLX 2.3 0 (Nf3-e5) (=11)} Ne4+ {[%emt 0:02:14] EASY} 35. Kf1 {[%emt 0:03:47] CPLX 2.3 0 (Re6xe4) (=11)} Rb1+ {[%emt 0:01:34] BESTDEEP} 36. Ne1 {[%emt 0:00:05] aiming for a6. MISS-Kf1-e2 0 (Kf1-e2) (=10)} Ra1 {[%emt 0:04:14] CPLX 2.5 37 (Ne4-g3) (=11)} 37. a6 {[%emt 0:00:46] Hoping for a7. CPLX 2.5 37 (Bc5-b4) (=11)} (37. Bb4 $5 {[%cal Rf1e2]} Bxe3 38. Ke2 Bxd4 39. Rc6 $14) 37... Bxe3 {[%emt 0:00:31][%cal Re4g3] CPLX 2.8 39 (Ne4-g3) (=12)} 38. Ke2 {[%emt 0:00:29] CPLX 2.7} Nxc5 {[%emt 0:00:50] EASY} 39. dxc5 {[%emt 0:01:20] RECAPT} Bxc5 $14 {[%emt 0:00:02][%mdl 4096] Endgame KRB-KRN. RECAPT} 40. Rc6 {[%emt 0:00:05] CPLX 2.2} Ra2+ {[%emt 0:00:52] CPLX 2.6 0 (Ra1-a5) (=11)} 41. Kd3 {[%emt 0:30:01] CPLX 2.2} Bf2 {[%emt 0:08:53] CPLX 2.7 4 (Ra2-a5) (=11)} 42. Nc2 {[%emt 0:00:00] CPLX 2.6} Kf7 {[%emt 0:00:54] CPLX 2.4} 43. Nb4 $1 {[%emt 0:00:00][%csl LRa2,LRd5] CPLX 2.4} Ra5 {[%emt 0:00:36] MISS-Ra2-a3 82 (Ra2-a3) (=12)} (43... Ra3+ $16 44. Ke2 Bd4) 44. Rc2 $1 $18 {[%emt 0:00:00] DEEPSTRONG=>BLUNDERREACT} ({Inferior is} 44. Rc7+ Ke6 $11) 44... Ra3+ {[%emt 0:03:47] [#] CPLX 2.4 45 (Bf2-b6) (=13)} 45. Ke2 $1 {[%emt 0:00:00] CPLX 2.2} Bg1 {[%emt 0:00:33] [#] CPLX 2.4 148 (Bf2-d4) (=17)} (45... Bd4 {was called for.} 46. Ra2 Rxa2+ 47. Nxa2 Ke6) 46. Ra2 $1 {[%emt 0:00:00] DEEPSTRONG=>BLUNDERREACT} Rxa2+ {[%emt 0:00:05] BEVAL 400 (Ra3-b3) (=26)} (46... Rb3 47. a7 (47. Nxd5 Ba7 $16) 47... Bxa7 48. Rxa7+ Kf6 49. Nxd5+ Ke5) 47. Nxa2 {[%emt 0:00:00] KB-KN. BEVAL. White is clearly winning.} Ke6 {[%emt 0:00:07] BEVAL} 48. Nc3 {[%emt 0:00:00] Threatens to win with Nb5. EVAL} Kd7 {[%emt 0:03:12] BEVAL 400 (Ke6-d6) (=34)} 49. Nxd5 {[%emt 0:00:00] BEVAL} Kc6 {[%emt 0:00:05] RELBLUND} 50. Nf6 {[%emt 0:00:00] BEVAL} h5 {[%emt 0:00:24] BEVAL} 51. Kf3 {[%emt 0:00:00] BEVAL} Bh2 {[%emt 0:00:53] BEVAL 400 (Bg1-b6) (=41)} 52. g3 {[%emt 0:00:00] White wants to mate with a7. BEVAL} Bg1 {[%emt 0:00:11] BEVAL} 53. Ke4 {[%emt 0:02:55] Weighted Error Value: White=0.09 (flawless) /Black=0.19 (very precise)} (53. Kf4 $142 Bh2 54. h4) 1-0

[Event "1st Serbian League 2022"]
[Site "Vrnjacka Banja"]
[Date "2022.09.20"]
[Round "1.14"]
[White "Sedlak, Nikola"]
[Black "Ivic, Velimir"]
[Result "1-0"]
[ECO "A15"]
[WhiteElo "2466"]
[BlackElo "2553"]
[Annotator "TA"]
[PlyCount "85"]
[EventDate "2022.09.20"]
[EventType "team-tourn"]
[EventCountry "SRB"]
[SourceTitle "playchess.com"]
[Source "ChessBase"]
[SourceQuality "1"]
[TimeControl "40/5400+30:1800+30"]

{[%evp 14,85,10,0,13,0,0,-26,11,8,7,-12,10,0,16,16,21,27,30,32,47,26,86,61,83,76,79,87,74,81,97,73,71,70,86,65,84,97,70,33,94,85,203,204,181,199,183,116,205,199,179,139,155,135,129,143,135,145,256,258,317,277,289,280,612,621,958,956,927,701,923,911,843,810]} 1. Nf3 {[%emt 0:00:12]} Nf6 {[%emt 0:00:24]} 2. g3 {[%emt 0:00:23]} g6 {[%emt 0:01:26]} 3. b3 {[%emt 0:01:24]} Bg7 {[%emt 0:00:33]} 4. Bb2 {[%emt 0:00:12]} d6 {[%emt 0:01:32]} 5. c4 {[%emt 0:01:30]} e5 {[%emt 0:00:21]} 6. Bg2 {[%emt 0:00:38]} O-O {[%emt 0:00:31]} 7. d3 {[%emt 0:00:28]} Re8 {[%emt 0:02:13]} 8. O-O {[%emt 0:00:54] BESTDEEP} a5 {[%emt 0:02:04] BESTDEEP. A15: English Opening: 1...Nf6.} 9. Nc3 {[%emt 0:06:07] CPLX 2.1} Na6 {[%emt 0:02:10] BESTDEEP} 10. Nd2 {[%emt 0:06:51] CPLX 2.0 26 (Qd1-d2) (=9)} Nc5 {[%emt 0:08:15] [#] CPLX 2.1 37 (c7-c6) (=12). Black has an edge.} 11. a3 $146 {[%emt 0:01:25] BESTDEEP} ({Predecessor:} 11. Nde4 Nfd7 12. Nxc5 Nxc5 13. a3 c6 14. b4 axb4 15. axb4 Rxa1 16. Bxa1 Ne6 17. b5 {0-1 (43) Azarova,T-Kalinina,V (2125) Yalta 1996}) 11... Ne6 {[%emt 0:01:37] BESTDEEP} 12. Nd5 {[%emt 0:08:47] CPLX 2.0 19 (b3-b4) (=9)} Nd7 {[%emt 0:06:29] CPLX 2.5 22 (Nf6-h5) (=12)} 13. b4 {[%emt 0:03:46] CPLX 2.3} c6 {[%emt 0:01:23] CPLX 2.5 16 (h7-h5) (=13)} 14. Nc3 {[%emt 0:00:08] CPLX 2.6} axb4 {[%emt 0:08:00] CPLX 2.2 5 (Nd7-f6) (=11)} 15. axb4 {[%emt 0:00:07] RECAPT} Rxa1 {[%emt 0:00:05] CPLX 2.7 3 (Ra8-b8) (=10)} 16. Qxa1 {[%emt 0:01:57] RECAPT} Nf6 {[%emt 0:01:53] CPLX 2.1 15 (Nd7-b6) (=11)} 17. Qa5 {[%emt 0:11:49] BESTDEEP} Qd7 {[%emt 0:18:49] CPLX 2.5 60 (Qd8xa5) (=16)} (17... Qxa5 $11 18. bxa5 Bh6) 18. Na4 {[%emt 0:05:31] CPLX 2.2 25 (b4-b5) (=6)} Nf8 {[%emt 0:15:13] CPLX 2.3 22 (h7-h5) (=16)} 19. Nb6 {[%emt 0:00:31] EASY} Qc7 {[%emt 0:01:26] CPLX 2.6 3 (Qd7-d8) (=15)} 20. Nxc8 {[%emt 0:00:42] CPLX 2.7} Qxc8 {[%emt 0:00:08] RECAPT} 21. b5 {[%emt 0:03:01] CPLX 2.1} d5 {[%emt 0:06:01] CPLX 2.3 16 (Qc8-d7) (=14)} 22. cxd5 {[%emt 0:03:06] CPLX 2.4 24 (Rf1-c1) (=6)} cxd5 {[%emt 0:00:09] RECAPT} 23. Rc1 {[%emt 0:00:51] CPLX 2.2} Qg4 {[%emt 0:02:28] CPLX 2.7} 24. e3 $36 {[%emt 0:02:53][%mdl 2048] White is more active. BESTDEEP} N8d7 {[%emt 0:04:23] CPLX 2.6 19 (Qg4-e2) (=13)} 25. h3 {[%emt 0:02:11] CPLX 2.8} Qe6 {[%emt 0:06:48] BESTDEEP} 26. Qc7 {[%emt 0:03:25] CPLX 2.5 37 (Qa5-a7) (=7)} Bf8 {[%emt 0:03:42] CPLX 2.5 61 (Re8-b8) (=15)} (26... Rb8 $1 $14) 27. Nf3 $16 {[%emt 0:05:56] DEEPSTRONG} ({Don't play} 27. Qxb7 $6 Nc5 28. Rxc5 Bxc5 $11) 27... Bd6 {[%emt 0:05:05] CPLX 2.6 118 (Qe6-d6) (=20)} (27... Qd6 $16) 28. Qxb7 $18 {[%emt 0:01:25] EASY} Nc5 {[%emt 0:00:22] [#] CPLX 2.6 0 (Re8-b8) (=19)} 29. Rxc5 {[%emt 0:01:28][%mdl 512] EASY} Bxc5 {[%emt 0:00:02] RECAPT} 30. Bxe5 {[%emt 0:00:25] CPLX 3.2 67 (Nf3xe5) (=9)} (30. Nxe5 $18 Re7 31. Qa8+ Re8 32. Qa4) 30... Nd7 {[%emt 0:01:15] CPLX 4.3 89 (Re8-d8) (=21)} (30... Rd8 $16 31. Bc3 Ne8) 31. d4 {[%emt 0:02:15] CPLX 4.1} Be7 {[%emt 0:00:26] CPLX 4.0} 32. Bc7 {[%emt 0:01:05] aiming for h4. This bishop pair is nice. CPLX 3.7 40 (h3-h4) (=10)} Bd8 {[%emt 0:00:42] DEEPSTRONG} 33. Bxd8 {[%emt 0:02:29] CPLX 3.1 20 (Bc7-f4) (=10)} Rxd8 {[%emt 0:00:03] RECAPT} 34. Ng5 $1 {[%emt 0:00:19][%csl LRd5,LRe6] EASY} Qe7 {[%emt 0:01:01] BESTDEEP} 35. Qxd5 {[%emt 0:00:52] White is much more active. EASY} Rb8 {[%emt 0:00:27] CPLX 3.9 111 (Nd7-b8) (=21)} (35... Nb8 $16 36. Qc5 Qxc5 37. dxc5 Nd7) 36. Ne4 {[%emt 0:00:41][%cal Od5d7] Hoping for Qxd7! CPLX 3.9} Rb6 {[%emt 0:00:30] CPLX 3.4 59 (Kg8-g7) (=23)} 37. Nc3 {[%emt 0:00:47] CPLX 3.9 40 (Qd5-a8) (=10)} Kg7 {[%emt 0:00:24] CPLX 3.4 12 (Rb6-b8) (=22)} 38. Qc4 {[%emt 0:00:39] [#] Black must now prevent Nd5. CPLX 3.0 9 (Qd5-b3) (=10)} Qa3 $2 {[%emt 0:00:33] CPLX 2.9 332 (Rb6-b8) (=32)} (38... Rb8 39. Qc7 Qd8) 39. Bc6 {[%emt 0:01:29] DEEPSTRONG=>BLUNDERREACT. White is clearly winning.} Qc1+ {[%emt 0:00:35] EVAL 337 (Qa3-a7) (=42)} 40. Kg2 {[%emt 0:00:07] EVAL} Nf6 {[%emt 0:00:28] EVAL} 41. Qd3 {[%emt 0:31:29] EVAL 226 (d4-d5) (=16)} Rb8 {[%emt 0:07:50] EVAL 222 (Qc1-a3) (=46)} 42. d5 {[%emt 0:00:00] EVAL} Qa3 {[%emt 0:03:23] EVAL} 43. Qd4 {[%emt 0:00:00] Weighted Error Value: White=0.12 (very precise) /Black=0.39} 1-0